bitfinex/quotes_SOLUSD_20250902
["timestamp","ask_amount","ask_price","bid_price","bid_amount"]
[1756847845122,27.92943106,207.77,207.76,0.03]
[1756847846605,51.91027351,207.77,207.76,0.03]
[1756847846903,38.3146795,207.77,207.76,0.03]
[1756847847108,27.92943106,207.77,207.76,0.71]
[1756847847435,27.92943106,207.77,207.76,5.58223405]
[1756847847633,0.06,207.78,207.76,5.58223405]
[1756847847939,0.06,207.78,207.77,5.55223405]
[1756847850029,0.06,207.78,207.77,0.68]
[1756847850237,0.06,207.78,207.77,4.87223405]
[1756847851126,0.06,207.78,207.76,5.58223405]
[1756847853044,0.06,207.78,207.77,0.68]
[1756847853216,0.06,207.78,207.76,4.90223405]
[1756847853415,0.06,207.78,207.76,0.03]
[1756847854032,26.7,207.77,207.76,0.03]
[1756847854531,26.0,207.77,207.76,0.03]
[1756847855244,31.58223405,207.77,207.76,0.03]
[1756847855427,26.0,207.77,207.76,0.03]
[1756847855820,31.58223405,207.77,207.76,0.03]
[1756847857324,32.28223405,207.77,207.76,0.03]
[1756847858140,31.58223405,207.77,207.76,0.03]
[1756847858646,37.09524844,207.77,207.76,0.03]
[1756847858953,55.5630765,207.77,207.76,0.03]
[1756847859125,93.02523807,207.77,207.76,0.03]
[1756847859636,93.30956121,207.77,207.76,0.03]
[1756847863077,14.02207872,207.76,207.73,0.03]
[1756847863364,44.60998963,207.74,207.73,0.03]
[1756847863668,49.42369907,207.74,207.73,0.03]
[1756847864044,50.12369907,207.74,207.73,0.03]
[1756847864644,52.05415441,207.74,207.73,0.03]
[1756847866343,52.05415441,207.74,207.71,0.03]
[1756847866344,5.15655719,207.72,207.71,0.03]
[1756847866543,42.47655719,207.72,207.71,0.03]
[1756847866853,43.17655719,207.72,207.71,0.03]
[1756847867054,56.91431277,207.72,207.71,0.03]
[1756847867257,58.84476812,207.72,207.71,0.03]
[1756847868062,63.65894104,207.72,207.71,0.03]
[1756847869965,68.53117509,207.72,207.71,1e-08]
[1756847870350,73.42534536,207.72,207.71,1e-08]
[1756847871863,68.55311131,207.72,207.71,1e-08]
[1756847873065,63.67894104,207.72,207.71,1e-08]
[1756847876262,20.76670699,207.72,207.71,1e-08]
[1756847876566,62.97894104,207.72,207.71,0.71000001]
[1756847876736,25.63894104,207.72,207.71,0.71000001]
[1756847876945,20.48238385,207.72,207.71,0.71000001]
[1756847877150,57.82238385,207.72,207.71,0.71000001]
[1756847877565,62.6946179,207.72,207.71,0.71000001]
[1756847877756,62.6946179,207.72,207.71,1e-08]
[1756847878872,57.82238385,207.72,207.71,1e-08]
[1756847879079,27.93045535,207.72,207.71,0.71000001]
[1756847879276,1.93045535,207.72,207.71,0.71000001]
[1756847880260,27.93045535,207.72,207.71,0.71000001]
[1756847880460,27.93045535,207.72,207.71,1e-08]
[1756847880461,37.61686232,207.72,207.71,1e-08]
[1756847881363,1.93045535,207.72,207.71,0.71000001]
[1756847881661,6.74462827,207.72,207.71,0.71000001]
[1756847881979,1.93045535,207.72,207.71,0.71000001]
[1756847882369,27.93045535,207.72,207.71,0.71000001]
[1756847882679,1.93045535,207.72,207.71,0.71000001]
[1756847882877,27.93045535,207.72,207.71,0.71000001]
[1756847883276,1.93045535,207.72,207.71,0.71000001]
[1756847883782,11.61686232,207.72,207.71,1e-08]
[1756847883983,26.33894104,207.72,207.71,1e-08]
[1756847888094,31.21117509,207.72,207.71,1e-08]
[1756847888390,5.29871876,207.67,207.66,0.03]
[1756847888560,56.23431277,207.67,207.66,0.03]
[1756847888881,56.93431277,207.67,207.66,0.03]
[1756847889472,61.80654682,207.67,207.66,0.03]
[1756847890067,66.62187883,207.67,207.66,0.03]
[1756847894071,65.92187883,207.67,207.66,0.03]
[1756847895782,66.62187883,207.67,207.66,0.03]
[1756847898575,26.0,207.6,207.55,0.67]
[1756847898885,30.87223405,207.57,207.55,0.67]
[1756847899701,30.87223405,207.57,207.56,0.67]
[1756847899904,35.68988592,207.57,207.56,0.67]
[1756847900081,50.17669085,207.57,207.56,0.67]
[1756847900478,50.17669085,207.57,207.48,4.87223405]
[1756847900677,40.48680493,207.57,207.56,0.67]
[1756847900883,4.87223405,207.57,207.56,0.67]
[1756847901078,9.7444681,207.57,207.56,0.67]
[1756847902175,14.56211997,207.57,207.56,0.67]
[1756847902507,9.7444681,207.57,207.56,0.67]
[1756847903304,26.0,207.56,207.54,0.67]
[1756847903499,26.0,207.56,207.51,4.81904144]
[1756847903500,30.87223405,207.56,207.51,4.81904144]
[1756847903808,30.87223405,207.56,207.55,0.67]
[1756847903999,35.69011803,207.56,207.53,0.67]
[1756847904302,4.87223405,207.54,207.48,4.87223405]
[1756847904807,4.87223405,207.52,207.49,0.67]
[1756847905278,19.36113797,207.53,207.49,0.67]
[1756847905478,17.61565244,207.53,207.49,0.67]
[1756847905700,14.48890392,207.53,207.49,0.67]
[1756847907687,17.61565244,207.53,207.49,0.67]
[1756847909612,3.12674852,207.52,207.5,0.67]
[1756847909793,14.48890392,207.53,207.49,0.67]
[1756847909992,14.29559401,207.54,207.5,0.67]
[1756847909993,26.0,207.51,207.5,0.67]
[1756847910194,3.12674852,207.54,207.5,0.67]
[1756847910392,26.0,207.53,207.5,0.67]
[1756847910731,14.48890392,207.52,207.5,0.67]
[1756847911012,14.48890392,207.52,207.51,0.67]
[1756847913892,18.31565244,207.52,207.48,0.67]
[1756847914106,3.12674852,207.5,207.48,0.67]
[1756847914322,3.12674852,207.5,207.46,134.38535833]
[1756847914503,7.94607867,207.5,207.47,0.67]
[1756847914701,14.4910035,207.49,207.47,0.67]
[1756847915101,14.4910035,207.49,207.46,134.41535833]
[1756847915605,3.12674852,207.48,207.46,134.41535833]
[1756847915837,26.0,207.47,207.46,134.41535833]
[1756847916125,26.0,207.47,207.46,133.74535833]
[1756847916699,45.25772955,207.47,207.46,133.74535833]
[1756847916904,29.12674852,207.47,207.46,133.74535833]
[1756847917117,29.82674852,207.47,207.46,133.74535833]
[1756847917317,34.64672249,207.47,207.46,133.74535833]
[1756847917644,48.66880121,207.47,207.46,133.74535833]
[1756847921105,86.06880121,207.47,207.46,133.74535833]
[1756847922329,86.06880121,207.47,207.46,39.80167844]
[1756847922506,86.06880121,207.47,207.46,15.47273893]
[1756847922842,26.0,207.39,207.36,0.67]
[1756847922998,29.12674852,207.38,207.36,0.67]
[1756847923312,29.12674852,207.38,207.37,0.67]
[1756847923713,43.62545572,207.38,207.37,0.67]
[1756847924105,48.44753614,207.38,207.34,0.67]
[1756847924310,48.44753614,207.38,207.28,4.82439212]
[1756847924311,3.12674852,207.36,207.28,4.82439212]
[1756847924528,3.12674852,207.36,207.3,3.12674852]
[1756847924912,3.12674852,207.36,207.31,0.67]
[1756847925122,3.80674852,207.36,207.32,0.67]
[1756847925406,3.12674852,207.36,207.32,0.67]
[1756847925823,26.0,207.34,207.33,0.67]
[1756847926222,26.0,207.35,207.33,0.67]
[1756847926419,40.50010875,207.35,207.33,0.67]
[1756847926931,40.50010875,207.35,207.34,3.12674852]
[1756847927111,40.50010875,207.35,207.34,3.79674852]
[1756847927317,50.99559401,207.44,207.34,3.79674852]
[1756847927512,50.99559401,207.44,207.39,3.12674852]
[1756847927829,26.0,207.4,207.39,3.79674852]
[1756847928032,14.49730592,207.43,207.4,0.67]
[1756847928225,13.59559401,207.43,207.42,3.12674852]
[1756847928433,13.59559401,207.43,207.4,3.79674852]
[1756847928607,14.49730592,207.42,207.4,3.79674852]
[1756847929234,26.0,207.4,207.39,3.12674852]
[1756847929814,30.82253403,207.4,207.39,3.79674852]
[1756847930017,30.82253403,207.4,207.39,0.67]
[1756847930215,30.82253403,207.4,207.39,3.79674852]
[1756847930536,37.42,207.49,207.39,21.12557586]
[1756847930741,13.59559401,207.48,207.47,3.12674852]
[1756847930916,13.59559401,207.48,207.46,3.12674852]
[1756847931116,26.0,207.45,207.42,0.67]
[1756847931434,26.0,207.45,207.16,24.87486757]
[1756847931435,26.0,207.41,207.38,0.67]
[1756847931616,26.0,207.41,207.39,3.12674852]
[1756847932008,26.0,207.41,207.39,3.79674852]
[1756847932208,26.0,207.41,207.39,0.67]
[1756847932438,26.0,207.41,207.39,3.79674852]
[1756847932921,40.49660537,207.41,207.39,3.79674852]
[1756847933264,26.0,207.41,207.4,3.12674852]
[1756847933407,14.49660538,207.42,207.4,3.12674852]
[1756847933616,14.49660538,207.42,207.41,3.12674852]
[1756847933816,26.0,207.47,207.41,3.79674852]
[1756847934030,14.4938039,207.45,207.44,3.12674852]
[1756847934514,14.4938039,207.45,207.44,3.79674852]
[1756847936819,14.4938039,207.45,207.44,0.67]
[1756847937048,14.4938039,207.45,207.44,3.79674852]
[1756847937687,0.06,207.46,207.44,0.67]
[1756847937843,0.06,207.46,207.45,3.79674852]
[1756847938270,0.06,207.46,207.45,3.12674852]
[1756847938455,0.06,207.46,207.43,0.67]
[1756847938652,0.06,207.46,207.45,3.12674852]
[1756847939268,0.06,207.46,207.4,12.50699408]
[1756847939269,0.06,207.46,207.4,4.82155868]
[1756847939480,0.06,207.46,207.44,3.12674852]
[1756847939844,0.06,207.46,207.44,3.79674852]
[1756847940169,0.06,207.46,207.45,3.12674852]
[1756847940369,0.06,207.46,207.45,3.79674852]
[1756847940665,14.49240357,207.47,207.45,3.79674852]
[1756847940847,26.0,207.53,207.46,0.67]
[1756847941043,38.33681188,207.53,207.46,0.67]
[1756847941558,38.33681188,207.53,207.5,3.12674852]
[1756847941744,12.33681188,207.53,207.51,3.12674852]
[1756847941948,38.33681188,207.53,207.52,3.79674852]
[1756847942144,38.33681188,207.53,207.5,0.67]
[1756847942466,43.15539556,207.53,207.48,3.79674852]
[1756847942658,43.33539556,207.53,207.48,3.79674852]
[1756847942974,43.33539556,207.53,207.49,3.12674852]
[1756847942975,38.51681188,207.53,207.49,3.12674852]
[1756847943148,26.0,207.51,207.5,3.79674852]
[1756847943471,26.0,207.51,207.5,3.12674852]
[1756847943649,26.0,207.52,207.49,3.12674852]
[1756847943846,13.59559401,207.5,207.4,4.82155703]
[1756847944049,3.12674852,207.47,207.41,3.79674852]
[1756847944250,8.62683445,207.47,207.42,3.12674852]
[1756847944450,8.62683445,207.47,207.43,0.67]
[1756847944451,14.4931037,207.46,207.43,0.67]
[1756847945249,14.4931037,207.46,207.42,3.12674852]
[1756847945449,14.4931037,207.46,207.42,0.67]
[1756847946267,14.4931037,207.46,207.42,3.79674852]
[1756847946961,14.4931037,207.46,207.43,0.67]
[1756847947266,14.4931037,207.46,207.43,3.79674852]
[1756847947650,14.4931037,207.46,207.44,0.67]
[1756847947851,14.4931037,207.46,207.45,0.67]
[1756847948047,29.80674852,207.5,207.45,0.67]
[1756847948263,4.82106999,207.48,207.45,0.67]
[1756847948448,8.62781851,207.48,207.42,3.12674852]
[1756847948658,13.44757182,207.48,207.43,0.67]
[1756847948864,5.50106999,207.48,207.44,0.67]
[1756847949064,26.0,207.47,207.44,0.67]
[1756847949374,26.0,207.46,207.44,0.67]
[1756847949573,26.0,207.46,207.42,4.82110022]
[1756847949574,26.0,207.46,207.45,3.79674852]
[1756847949873,30.82106999,207.48,207.45,3.79674852]
[1756847950754,26.0,207.47,207.45,3.79674852]
[1756847950949,26.0,207.47,207.4,50.04699408]
[1756847950950,26.0,207.47,207.42,5.49091321]
[1756847951258,26.0,207.47,207.43,3.79674852]
[1756847951476,31.50106999,207.48,207.43,3.84674852]
[1756847951667,26.68,207.48,207.43,3.84674852]
[1756847952555,0.66,207.47,207.43,3.84674852]
[1756847953756,0.66,207.47,207.43,3.87674852]
[1756847953957,0.66,207.47,207.43,8.69758593]
[1756847954157,0.66,207.47,207.44,3.12674852]
[1756847955063,26.0,207.48,207.43,3.15674852]
[1756847955064,0.66,207.46,207.43,3.15674852]
[1756847955386,30.81986079,207.48,207.43,3.15674852]
[1756847955590,26.0,207.48,207.44,3.84674852]
[1756847955963,26.66,207.48,207.44,3.84674852]
[1756847956664,26.0,207.48,207.46,3.12674852]
[1756847956870,26.0,207.48,207.46,3.84674852]
[1756847957393,26.0,207.48,207.46,3.12674852]
[1756847957880,26.0,207.48,207.46,3.84674852]
[1756847958079,26.0,207.48,207.46,3.12674852]
[1756847958262,0.66,207.53,207.47,3.84674852]
[1756847958461,0.66,207.53,207.51,3.12674852]
[1756847958666,26.0,207.52,207.51,3.12674852]
[1756847959078,0.66,207.52,207.5,3.12674852]
[1756847960174,26.0,207.51,207.5,3.12674852]
[1756847961489,26.66,207.51,207.49,3.12674852]
[1756847961672,4.81862578,207.53,207.43,0.03]
[1756847961673,39.59559401,207.49,207.43,0.03]
[1756847961878,3.12674852,207.47,207.43,0.03]
[1756847962080,16.72234253,207.47,207.43,0.03]
[1756847962286,26.0,207.44,207.43,0.03]
[1756847962697,26.66,207.44,207.43,0.03]
[1756847963083,22.20301356,207.44,207.43,0.03]
[1756847963404,19.07626504,207.44,207.43,0.03]
[1756847964313,22.34517513,207.44,207.43,0.03]
[1756847964504,59.88517513,207.44,207.43,0.03]
[1756847966176,31.48067103,207.44,207.43,0.03]
[1756847966385,8.60741955,207.44,207.43,0.03]
[1756847967112,22.34517513,207.44,207.43,0.03]
[1756847967480,50.10884623,207.44,207.43,0.03]
[1756847967709,24.10884623,207.44,207.43,0.03]
[1756847969398,26.04182035,207.44,207.43,0.03]
[1756847969607,52.04182035,207.44,207.43,0.03]
[1756847970016,26.32614349,207.44,207.43,0.03]
[1756847970505,26.04182035,207.44,207.43,0.03]
[1756847970696,63.58182035,207.44,207.43,0.03]
[1756847973480,25.38182035,207.44,207.43,0.03]
[1756847973686,62.90182035,207.44,207.43,0.03]
[1756847974625,63.56182035,207.44,207.43,0.03]
[1756847978644,31.24785301,207.41,207.4,0.03]
[1756847978824,73.63827263,207.41,207.4,0.03]
[1756847979024,36.13827263,207.41,207.4,0.03]
[1756847979227,78.54869225,207.41,207.4,0.03]
[1756847979550,79.20869225,207.41,207.4,0.03]
[1756847979933,97.69470588,207.41,207.4,1e-08]
[1756847980230,92.13308333,207.41,207.4,1e-08]
[1756847980413,97.02350295,207.41,207.4,1e-08]
[1756847980612,49.30738193,207.41,207.4,1e-08]
[1756847980814,81.93696231,207.41,207.4,1e-08]
[1756847981023,86.82738193,207.41,207.4,1e-08]
[1756847981218,87.50738193,207.41,207.4,1e-08]
[1756847981544,87.6495435,207.41,207.4,1e-08]
[1756847982038,82.75912388,207.41,207.4,1e-08]
[1756847982249,87.6495435,207.41,207.4,1e-08]
[1756847982461,87.93386664,207.41,207.4,1e-08]
[1756847984645,87.95386664,207.41,207.4,1e-08]
[1756847984956,87.31386664,207.41,207.4,1e-08]
[1756847985336,87.99386664,207.41,207.4,1e-08]
[1756847985956,87.0295435,207.41,207.4,1e-08]
[1756847986147,86.88738193,207.41,207.4,1e-08]
[1756847986745,44.55912388,207.41,207.4,0.71000001]
[1756847986951,82.11912388,207.41,207.4,0.71000001]
[1756847988457,82.11912388,207.41,207.4,1e-08]
[1756847988875,4.89041962,207.42,207.4,5.60041963]
[1756847989038,13.59559401,207.46,207.41,5.60041962]
[1756847989349,26.0,207.45,207.44,4.89041962]
[1756847989554,26.0,207.45,207.44,0.71]
[1756847991454,26.06,207.45,207.43,4.89041962]
[1756847991761,26.06,207.45,207.4,4.82148288]
[1756847991762,26.06,207.45,207.44,5.60041962]
[1756847992361,0.06,207.45,207.44,5.60041962]
[1756847992835,0.06,207.45,207.44,10.42109065]
[1756847994241,0.06,207.45,207.44,5.53067103]
[1756847994443,0.06,207.45,207.44,10.42109065]
[1756847998882,0.06,207.53,207.44,102.17276824]
[1756847999086,0.06,207.53,207.52,4.89041962]
[1756847999550,0.06,207.53,207.51,4.89041962]
[1756847999951,26.06,207.53,207.44,96.57234862]
[1756848000158,0.74,207.53,207.48,4.89041962]
[1756848000358,0.74,207.53,207.49,0.71]
[1756848000668,5.63041962,207.53,207.49,0.71]
[1756848000866,26.0,207.49,207.43,0.71]
[1756848001074,30.89041962,207.49,207.43,5.60041962]
[1756848001382,26.0,207.49,207.44,5.60041962]
[1756848001555,26.68,207.49,207.44,5.60041962]
[1756848001752,0.06,207.53,207.45,0.71]
[1756848001979,26.0,207.52,207.5,4.89041962]
[1756848002182,26.0,207.52,207.5,5.60041962]
[1756848002367,26.0,207.52,207.5,4.89041962]
[1756848002758,26.0,207.51,207.5,4.89041962]
[1756848003573,26.06,207.53,207.5,10.41963035]
[1756848003772,0.06,207.53,207.52,4.89041962]
[1756848003973,0.06,207.53,207.52,5.60041962]
[1756848004997,0.06,207.53,207.52,4.89041962]
[1756848005377,0.06,207.53,207.51,4.89041962]
[1756848005706,26.06,207.53,207.51,4.89041962]
[1756848006269,26.06,207.53,207.47,4.81995551]
[1756848006270,26.74,207.53,207.49,4.89041962]
[1756848006801,26.74,207.53,207.47,0.71]
[1756848006802,0.68,207.52,207.48,4.89041962]
[1756848007396,5.49895076,207.52,207.46,0.71]
[1756848007599,0.68,207.51,207.47,4.89041962]
[1756848007803,26.0,207.49,207.46,5.60041962]
[1756848008379,26.0,207.48,207.44,5.60041962]
[1756848008581,0.68,207.49,207.44,5.60041962]
[1756848009081,4.81974166,207.48,207.44,5.60041962]
[1756848009288,4.81974166,207.48,207.44,0.71]
[1756848009484,13.59559401,207.5,207.45,5.60041962]
[1756848009685,26.0,207.49,207.46,0.71]
[1756848009893,30.89041962,207.49,207.43,5.60041962]
[1756848010201,5.57041962,207.48,207.43,0.71]
[1756848010407,0.68,207.48,207.44,5.60041962]
[1756848010580,26.06,207.49,207.44,5.60041962]
[1756848010782,26.74,207.49,207.44,5.60041962]
[1756848010981,26.06,207.49,207.44,5.60041962]
[1756848011279,26.0,207.45,207.43,4.89041962]
[1756848011590,26.0,207.45,207.43,5.58041962]
[1756848013088,26.0,207.45,207.43,0.69]
[1756848013305,26.0,207.45,207.41,5.58041962]
[1756848013509,26.0,207.45,207.42,0.69]
[1756848013813,26.0,207.45,207.41,4.89041962]
[1756848013814,26.66,207.45,207.41,4.89041962]
[1756848014194,26.66,207.45,207.4,1e-08]
[1756848014195,26.0,207.41,207.4,1e-08]
[1756848014393,26.0,207.41,207.4,4.89041963]
[1756848015017,26.0,207.44,207.4,5.58041963]
[1756848015218,26.0,207.41,207.4,1e-08]
[1756848015586,26.66,207.41,207.4,1e-08]
[1756848017214,31.4813683,207.41,207.4,1e-08]
[1756848018128,54.09769514,207.41,207.4,1e-08]
[1756848018428,50.1095435,207.41,207.4,1e-08]
[1756848018716,50.39386664,207.41,207.4,1e-08]
[1756848020298,45.50344702,207.41,207.4,1e-08]
[1756848020623,50.39386664,207.41,207.4,1e-08]
[1756848023023,88.15386664,207.41,207.4,1e-08]
[1756848024302,93.04428626,207.41,207.4,1e-08]
[1756848024498,93.04428626,207.41,207.37,0.03]
[1756848024724,44.91249834,207.38,207.37,1e-08]
[1756848024926,82.67249834,207.38,207.37,1e-08]
[1756848025108,83.33249834,207.38,207.37,1e-08]
[1756848025428,88.22291796,207.38,207.37,1e-08]
[1756848026312,93.04498373,207.38,207.37,1e-08]
[1756848027438,91.28761724,207.38,207.37,1e-08]
[1756848029240,88.15456411,207.38,207.37,1e-08]
[1756848029405,91.28761724,207.38,207.37,1e-08]
[1756848029831,49.73456411,207.38,207.37,1e-08]
[1756848030024,52.44113253,207.38,207.37,1e-08]
[1756848030221,90.20113253,207.38,207.37,1e-08]
[1756848030423,52.86761724,207.38,207.37,1e-08]
[1756848030617,37.76,207.39,207.37,0.69000001]
[1756848030835,53.28894184,207.4,207.38,0.69]
[1756848031440,58.11054261,207.4,207.38,0.69]
[1756848032614,15.52894184,207.4,207.39,0.69]
[1756848032808,0.06,207.56,207.39,3.82305313]
[1756848032809,4.8202063,207.46,207.39,3.82305313]
[1756848033012,1.93288072,207.45,207.42,3.13305313]
[1756848033240,26.0,207.43,207.41,3.13305313]
[1756848033615,26.0,207.43,207.42,0.69]
[1756848035520,30.82100251,207.43,207.39,0.69]
[1756848035829,26.0,207.41,207.4,0.69]
[1756848036030,26.0,207.41,207.39,3.13305313]
[1756848036543,26.0,207.41,207.4,3.82305313]
[1756848037141,26.0,207.41,207.4,0.69]
[1756848040133,30.8213683,207.41,207.38,0.69]
[1756848040333,30.8213683,207.41,207.39,0.69]
[1756848040536,26.0,207.41,207.39,0.69]
[1756848040944,30.82144458,207.41,207.39,0.69]
[1756848041344,30.82144458,207.41,207.38,3.13305313]
[1756848041656,30.82144458,207.41,207.39,0.67]
[1756848041836,26.0,207.41,207.4,0.67]
[1756848043424,26.0,207.38,207.37,1e-08]
[1756848043830,26.0,207.38,207.37,0.67000001]
[1756848046047,26.0,207.38,207.37,1e-08]
[1756848046250,30.82206577,207.38,207.37,1e-08]
[1756848048556,33.9551189,207.38,207.37,1e-08]
[1756848049428,1.93325439,207.4,207.37,3.13305314]
[1756848049628,3.19305313,207.49,207.39,3.13305313]
[1756848049855,13.59559401,207.48,207.43,3.13305313]
[1756848050054,18.41534933,207.48,207.44,3.80305313]
[1756848050431,4.87997757,207.47,207.44,0.67]
[1756848050847,26.0,207.45,207.44,3.80305313]
[1756848051543,26.0,207.45,207.44,0.67]
[1756848053632,26.0,207.45,207.43,3.13305313]
[1756848053852,26.0,207.45,207.43,3.80305313]
[1756848054258,30.82048151,207.45,207.43,0.67]
[1756848054458,4.82048151,207.45,207.42,3.13305313]
[1756848054649,26.0,207.44,207.42,3.80305313]
[1756848054848,26.0,207.44,207.42,0.67]
[1756848055047,26.0,207.44,207.42,3.80305313]
[1756848057241,26.69,207.44,207.39,0.67]
[1756848057450,26.69,207.44,207.38,4.82202023]
[1756848057451,0.69,207.44,207.4,3.80305313]
[1756848057862,5.51080958,207.44,207.4,3.80305313]
[1756848058064,0.69,207.44,207.4,3.80305313]
[1756848058241,26.0,207.45,207.42,3.13305313]
[1756848058577,3.88305313,207.47,207.39,4.82169863]
[1756848058578,4.88001214,207.47,207.43,3.80305313]
[1756848058740,26.0,207.45,207.43,3.80305313]
[1756848058936,26.0,207.45,207.44,3.80305313]
[1756848059157,0.06,207.47,207.44,3.80305313]
[1756848059356,0.06,207.47,207.46,3.13305313]
[1756848059580,0.06,207.47,207.45,0.67]
[1756848059742,0.06,207.47,207.45,3.13305313]
[1756848059941,26.06,207.47,207.46,0.67]
[1756848060259,26.75,207.47,207.44,3.13305313]
[1756848060463,26.06,207.47,207.45,3.80305313]
[1756848061461,26.0,207.46,207.43,3.13305313]
[1756848061771,26.0,207.45,207.4,3.13305313]
[1756848061947,26.0,207.45,207.4,0.67]
[1756848062148,0.69,207.45,207.4,3.80305313]
[1756848062354,0.69,207.45,207.41,0.67]
[1756848062560,26.69,207.44,207.39,3.13305313]
[1756848062784,26.0,207.44,207.37,1e-08]
[1756848062968,3.13305313,207.42,207.37,1e-08]
[1756848063275,3.13305313,207.38,207.37,1e-08]
[1756848063475,7.9551189,207.38,207.37,1e-08]
[1756848063685,33.9551189,207.38,207.37,1e-08]
[1756848064267,34.6451189,207.38,207.37,1e-08]
[1756848064458,8.6451189,207.38,207.37,1e-08]
[1756848065391,0.14216157,207.41,207.37,1e-08]
[1756848065686,26.0,207.38,207.37,1e-08]
[1756848065862,29.13305313,207.38,207.37,1e-08]
[1756848066061,29.82305313,207.38,207.37,1e-08]
[1756848066578,29.13305313,207.38,207.37,1e-08]
[1756848066754,26.0,207.38,207.37,1e-08]
[1756848066952,29.13305313,207.38,207.37,1e-08]
[1756848067894,33.9551189,207.38,207.37,1e-08]
[1756848068185,48.24071291,207.38,207.37,1e-08]
[1756848068553,48.24071291,207.38,207.34,0.03]
[1756848068759,39.59559401,207.34,207.25,3.13305313]
[1756848069061,26.0,207.34,207.28,3.80305313]
[1756848069266,3.13305313,207.33,207.28,0.67]
[1756848069461,3.13305313,207.33,207.29,0.67]
[1756848069684,26.0,207.34,207.21,0.28432314]
[1756848069983,26.0,207.3,207.27,3.13305313]
[1756848070281,26.0,207.3,207.28,0.67]
[1756848073996,26.0,207.31,207.28,0.67]
[1756848074202,26.0,207.29,207.26,0.69]
[1756848074898,30.82427463,207.29,207.21,4.82602191]
[1756848075104,26.0,207.29,207.25,3.13305313]
[1756848075387,26.0,207.33,207.28,3.13305313]
[1756848075598,4.82602191,207.34,207.31,3.13305313]
[1756848075774,0.69,207.37,207.32,3.13305313]
[1756848075974,26.0,207.35,207.32,3.13305313]
[1756848076382,26.0,207.35,207.32,3.82305313]
[1756848076583,4.82248448,207.37,207.32,3.82305313]
[1756848076786,5.51248448,207.37,207.32,3.82305313]
[1756848077301,26.0,207.34,207.32,3.82305313]
[1756848077470,26.0,207.34,207.33,3.13305313]
[1756848077779,26.0,207.34,207.33,3.82305313]
[1756848077977,26.0,207.34,207.33,3.13305313]
[1756848078504,26.0,207.35,207.33,3.82305313]
[1756848078802,26.0,207.37,207.34,3.82305313]
[1756848079002,5.51141453,207.41,207.36,3.13305313]
[1756848079304,0.69,207.4,207.37,3.13305313]
[1756848079674,26.0,207.38,207.37,3.13305313]
[1756848081822,14.49800653,207.43,207.37,3.82305313]
[1756848082123,26.0,207.42,207.41,3.13305313]
[1756848082291,26.0,207.41,207.4,3.13305313]
[1756848082620,37.8,207.46,207.4,3.13305313]
[1756848082910,0.06,207.47,207.44,3.13305313]
[1756848083208,26.0,207.45,207.44,3.13305313]
[1756848083412,0.06,207.47,207.44,3.13305313]
[1756848083713,26.06,207.47,207.44,3.13305313]
[1756848083911,26.75,207.47,207.44,3.13305313]
[1756848084108,26.0,207.46,207.44,3.13305313]
[1756848084314,0.75,207.47,207.44,3.13305313]
[1756848084518,26.0,207.46,207.44,3.13305313]
[1756848086093,0.06,207.47,207.45,3.82305313]
[1756848086291,0.06,207.47,207.46,3.13305313]
[1756848087414,0.06,207.47,207.46,5.5102063]
[1756848087744,0.06,207.47,207.46,10.3950608]
[1756848090611,0.06,207.47,207.45,4.8848545]
[1756848090811,0.06,207.47,207.43,4.8848545]
[1756848091132,26.06,207.47,207.43,4.8848545]
[1756848091342,26.06,207.47,207.43,10.39561081]
[1756848091522,0.06,207.47,207.41,4.8213683]
[1756848091726,0.06,207.47,207.41,5.5748545]
[1756848091727,5.6348545,207.47,207.41,5.5748545]
[1756848091917,5.6348545,207.47,207.41,43.3748545]